bitfinex-derivatives/quotes_SOLF0:USTF0_20250207
["timestamp","ask_amount","ask_price","bid_price","bid_amount"]
[1738931701969,0.03209006,198.38,198.34,2.03e-05]
[1738931702169,0.03209006,198.38,198.34,7.03592875]
[1738931702369,0.03209006,198.38,198.35,5.0396]
[1738931703875,0.03209006,198.38,198.34,7.03592875]
[1738931704970,0.03209006,198.38,198.34,2.03e-05]
[1738931705171,5.0394,198.37,198.34,2.03e-05]
[1738931706677,0.03209006,198.38,198.36,7.03590845]
[1738931706871,0.03209006,198.38,198.37,5.0393]
[1738931708573,90.72503231,198.44,198.36,7.03590845]
[1738931708774,88.72682386,198.44,198.38,7.03590845]
[1738931709271,5.0377,198.44,198.39,5.0385]
[1738931709473,12.07300845,198.46,198.4,7.03590845]
[1738931709876,0.03560192,198.45,198.41,0.03487363]
[1738931710578,0.03560192,198.45,198.42,5.0379]
[1738931712373,5.038,198.42,198.41,0.03487363]
[1738931712578,7.03590845,198.44,198.41,0.03487363]
[1738931712779,0.03560192,198.45,198.41,0.03487363]
[1738931713180,0.03560192,198.45,198.42,7.03590845]
[1738931714282,0.03560192,198.45,198.42,12.07390845]
[1738931724791,0.03560192,198.45,198.41,0.03487363]
[1738931724792,0.03560192,198.45,198.44,12.07340845]
[1738931724988,90.72503231,198.56,198.44,7.03590845]
[1738931725197,90.72503231,198.56,198.5,7.03590845]
[1738931725493,5.0352,198.54,198.5,7.03590845]
[1738931725688,90.72503231,198.56,198.5,7.03590845]
[1738931726095,90.72503231,198.56,198.51,0.03345029]
[1738931726691,7.03590845,198.52,198.51,0.03345029]
[1738931727098,7.03590845,198.52,198.51,5.029e-05]
[1738931727593,12.07140845,198.52,198.51,5.029e-05]
[1738931730589,5.0355,198.52,198.51,5.029e-05]
[1738931739705,0.03571014,198.53,198.51,5.029e-05]
[1738931740004,0.03571014,198.53,198.52,7.03590845]
[1738931740297,83.68912386,198.58,198.52,7.03590845]
[1738931740499,83.68912386,198.59,198.56,7.03590845]
[1738931740900,83.68912386,198.59,198.58,7.03590845]
[1738931740901,72.56902386,198.59,198.58,7.03590845]
[1738931741394,72.56902386,198.59,198.58,12.06980845]
[1738931742004,157.43890518,198.61,198.6,5.0334]
[1738931742204,157.43890518,198.61,198.6,12.06930845]
[1738931742503,157.43890518,198.61,198.6,7.03590845]
[1738931743207,5.0325,198.64,198.6,7.03590845]
[1738931743803,5.0328,198.63,198.6,7.03590845]
[1738931744200,5.0328,198.63,198.6,7.06864155]
[1738931744598,21.32058777,198.72,198.6,0.0327331]
[1738931744802,111.33774406,198.96,198.72,7.03590845]
[1738931745104,111.33774406,198.96,198.87,7.03590845]
[1738931745299,104.30183561,198.96,198.87,7.03590845]
[1738931745496,111.33774406,198.96,198.87,7.03590845]
[1738931745802,5.0262,198.89,198.86,0.03306673]
[1738931746002,7.03590845,198.9,198.86,0.03306673]
[1738931746408,5.026,198.9,198.86,0.03306673]
[1738931746702,115.21873299,198.96,198.86,0.03306673]
[1738931746897,3.1201,198.92,198.86,0.03306673]
[1738931747704,3.1201,198.92,198.87,136.50248495]
[1738931748102,5.026,198.9,198.87,136.50248495]
[1738931748902,5.0262,198.89,198.87,136.50248495]
[1738931749204,5.0262,198.89,198.87,134.04288495]
[1738931749503,5.0262,198.89,198.88,134.04288495]
[1738931749706,1.4816,198.92,198.88,131.58338495]
[1738931749906,5.0258,198.91,198.88,131.58338495]
[1738931750107,1.4816,198.92,198.88,131.58338495]
[1738931750307,5.0259,198.9,198.88,131.58338495]
[1738931751005,0.5916446,198.93,198.89,49.87684367]
[1738931751907,10.91689738,198.95,198.89,49.87684367]
[1738931752407,5.0256,198.91,198.9,49.91263628]
[1738931752608,9.35676359,198.95,198.9,49.91263628]
[1738931753406,10.91689738,198.96,198.9,49.91263628]
[1738931753802,10.91689738,198.96,198.91,105.98753786]
[1738931754001,18.82,199.01,198.91,105.98753786]
[1738931754306,5.0253,198.92,198.91,105.98753786]
[1738931755104,1.557,198.95,198.9,0.03344954]
[1738931755105,5.0256,198.91,198.9,0.03344954]
[1738931755508,10.91689738,198.96,198.9,0.03344954]
[1738931756209,5.0256,198.91,198.9,0.03344954]
[1738931756612,5.0256,198.91,198.9,137.48483845]
[1738931757311,10.91689738,198.96,198.9,137.48483845]
[1738931757905,5.0248,198.95,198.9,137.48483845]
[1738931758115,10.91689738,198.96,198.9,137.48483845]
[1738931758509,5.0256,198.91,198.9,137.48483845]
[1738931758711,5.0256,198.91,198.9,137.45138891]
[1738931759111,5.0259,198.9,198.89,0.03691102]
[1738931759912,5.027,198.86,198.81,5.0281]
[1738931760509,10.91689738,198.9,198.76,10.91689738]
[1738931760710,1.5752,198.89,198.76,10.91689738]
[1738931761111,0.03508006,198.84,198.81,0.0337926]
[1738931763111,0.03508006,198.84,198.82,5.0279]
[1738931763513,0.03508006,198.84,198.81,0.0337926]
[1738931763715,0.03508006,198.84,198.81,5.0618926]
[1738931764015,5.0278,198.83,198.81,0.0337926]
[1738931764215,0.03508006,198.84,198.81,0.0337926]
[1738931765308,5.0279,198.82,198.81,0.0337926]
[1738931765513,0.03508006,198.84,198.81,0.0337926]
[1738931766207,0.03508006,198.84,198.82,10.91689738]
[1738931766912,0.03508006,198.84,198.81,0.0337926]
[1738931767114,5.0277,198.83,198.81,0.0337926]
[1738931768215,5.0279,198.82,198.81,0.0337926]
[1738931774217,5.06248006,198.84,198.81,0.0337926]
[1738931774913,0.03508006,198.84,198.82,5.0277]
[1738931778126,0.03508006,198.84,198.82,5.0279]
[1738931778526,0.03508006,198.84,198.81,0.0337926]
[1738931778922,0.03508006,198.84,198.82,5.0279]
[1738931780525,0.03508006,198.84,198.81,0.0337926]
[1738931780726,5.0279,198.82,198.81,0.0337926]
[1738931786734,0.03508006,198.84,198.81,0.0337926]
[1738931786919,0.03508006,198.84,198.82,10.91689738]
[1738931787321,0.03508006,198.84,198.83,5.0276]
[1738931787726,0.03508006,198.84,198.82,15.94469738]
[1738931788231,0.03508006,198.84,198.82,5.0278]
[1738931789130,0.03508006,198.84,198.81,0.0337926]
[1738931789330,5.0279,198.82,198.81,0.0337926]
[1738931789834,5.0294,198.76,198.73,5.03]
[1738931790023,10.91689738,198.84,198.7,10.91689738]
[1738931790330,10.91689738,198.81,198.7,10.91689738]
[1738931790726,10.91689738,198.81,198.67,14.59689738]
[1738931790922,5.03,198.74,198.67,14.59689738]
[1738931791126,5.03,198.74,198.72,0.03413991]
[1738931791522,5.0302,198.73,198.72,0.03413991]
[1738931791724,10.91689738,198.78,198.64,10.91689738]
[1738931791927,5.0304,198.73,198.71,0.03742198]
[1738931792931,5.0304,198.72,198.71,0.03742198]
[1738931794834,5.0302,198.73,198.71,0.03742198]
[1738931797040,0.03720198,198.74,198.71,0.03742198]
[1738931797241,0.03720198,198.74,198.73,15.94709738]
[1738931802045,0.03720198,198.74,198.71,0.03742198]
[1738931802436,5.0302,198.73,198.71,0.03742198]
[1738931803135,5.06720198,198.74,198.71,0.03742198]
[1738931803537,0.03720198,198.74,198.71,0.03742198]
[1738931803748,0.03720198,198.74,198.71,5.06802198]
[1738931805541,5.06710198,198.74,198.71,0.03742198]
[1738931806346,0.03720198,198.74,198.71,0.03742198]
[1738931806845,0.03720198,198.74,198.71,5.06802198]
[1738931812249,5.06710198,198.74,198.71,5.06802198]
[1738931814450,0.03720198,198.74,198.71,5.06802198]
[1738931814748,0.03720198,198.74,198.72,5.0302]
[1738931815346,0.03720198,198.74,198.73,5.0302]
[1738931818855,3.0336,198.82,198.78,5.0288]
[1738931820054,3.06673793,198.82,198.78,5.06060357]
[1738931820455,0.03313793,198.82,198.78,0.03180357]
[1738931821459,0.03313793,198.82,198.8,5.0283]
[1738931822457,0.03313793,198.82,198.78,0.03180357]
[1738931822654,0.03313793,198.82,198.81,5.0281]
[1738931826961,5.0264,198.88,198.83,5.0275]
[1738931827162,10.91689738,198.91,198.83,5.0275]
[1738931827461,10.91689738,198.91,198.79,10.91689738]
[1738931827856,5.0267,198.87,198.82,5.0277]
[1738931828054,5.0267,198.87,198.85,0.03200695]
[1738931828858,6.99105179,198.86,198.85,0.03200695]
[1738931829365,12.01745179,198.88,198.85,0.03200695]
[1738931829758,6.99105179,198.88,198.85,0.03200695]
[1738931830166,6.99105179,198.9,198.85,0.03200695]
[1738931830467,6.99105179,198.92,198.85,7.02305874]
[1738931831770,12.01665179,198.92,198.87,5.0266]
[1738931832473,5.0256,198.91,198.87,5.0266]
[1738931832772,6.99105179,198.9,198.86,5.0269]
[1738931833377,6.99105179,198.9,198.87,5.0266]
[1738931833576,6.99105179,198.9,198.85,7.02305874]
[1738931834176,6.99105179,198.9,198.85,0.03200695]
[1738931834676,6.99105179,198.92,198.85,7.02305874]
[1738931834872,6.99105179,198.92,198.85,6.99105179]
[1738931835073,12.01645179,198.92,198.87,5.06097905]
[1738931837879,12.01645179,198.92,198.87,0.03457905]
[1738931838074,6.99105179,198.92,198.88,5.0261]
[1738931839780,12.01645179,198.92,198.88,5.0261]
[1738931840280,6.99105179,198.92,198.88,5.0261]
[1738931841177,6.99105179,198.96,198.89,6.99105179]
[1738931841582,6.99105179,198.96,198.91,0.03560482]
[1738931842382,6.99105179,198.96,198.92,5.0253]
[1738931842577,6.99105179,198.96,198.91,0.03560482]
[1738931842883,6.99105179,198.98,198.91,7.02665661]
[1738931843183,6.99105179,198.98,198.93,5.0249]
[1738931843375,6.99105179,198.98,198.91,7.02665661]
[1738931843880,6.99105179,198.98,198.93,6.99105179]
[1738931844685,6.99105179,198.98,198.94,5.0248]
[1738931845185,6.99105179,198.98,198.94,5.0247]
[1738931845391,6.99105179,198.98,198.93,6.99105179]
[1738931845784,6.99105179,198.98,198.94,5.0247]
[1738931848592,6.99105179,199.1,198.97,6.99105179]
[1738931848887,3.2219,199.15,199.09,6.99105179]
[1738931849094,3.2219,199.15,199.11,6.99105179]
[1738931849283,6.99105179,199.2,199.13,6.99105179]
[1738931849793,6.99105179,199.2,199.15,0.03672745]
[1738931849990,6.99105179,199.18,199.15,0.03672745]
[1738931850692,136.36595974,199.21,199.15,0.03672745]
[1738931851693,10.88841276,199.22,199.15,0.03672745]
[1738931852291,10.88841276,199.19,199.08,10.88841276]
[1738931852491,10.88841276,199.16,199.05,10.88841276]
[1738931853391,0.03385689,199.12,199.09,0.03726791]
[1738931853593,5.05415689,199.12,199.09,0.03726791]
[1738931854595,0.03385689,199.12,199.09,0.03726791]
[1738931860293,0.03385689,199.12,199.09,5.05826791]
[1738931861697,3.64,199.38,199.11,10.88841276]
[1738931861994,1.5366,199.28,199.16,10.88841276]
[1738931862196,5.0181,199.21,199.16,15.90761276]
[1738931862796,5.0181,199.21,199.17,0.03777564]
[1738931863002,5.0188,199.19,199.17,0.03777564]
[1738931863504,5.0188,199.18,199.17,0.03777564]
[1738931864104,5.0191,199.17,199.13,10.88841276]
[1738931864805,5.0197,199.15,199.1,10.88841276]
[1738931865207,0.03858128,199.14,199.11,0.03442837]
[1738931866813,0.03858128,199.14,199.11,5.05492837]
[1738931871612,0.03858128,199.14,199.11,0.03442837]
[1738931873812,0.03858128,199.14,199.13,5.02]
[1738931874010,0.03858128,199.14,199.13,15.90841276]
[1738931876708,10.88841276,199.26,199.13,10.88841276]
[1738931876917,10.88841276,199.26,199.18,5.0187]
[1738931876918,5.0178,199.22,199.18,5.0187]
[1738931877923,5.0178,199.22,199.18,5.05558773]
[1738931879318,3.0036,199.28,199.18,0.03688773]
[1738931880112,10.88841276,199.29,199.18,0.03688773]
[1738931880318,1.5472,199.28,199.18,0.03688773]
[1738931880518,10.88841276,199.26,199.18,0.03688773]
[1738931880920,5.0179,199.22,199.18,0.03688773]
[1738931881115,10.88841276,199.26,199.18,0.03688773]
[1738931881421,5.0178,199.22,199.18,0.03688773]
[1738931882019,5.018,199.21,199.18,0.03688773]
[1738931882320,10.88841276,199.26,199.18,0.03688773]
[1738931882522,5.0174,199.24,199.18,0.03688773]
[1738931882719,10.88841276,199.26,199.18,0.03688773]
[1738931883812,25.96841276,199.26,199.18,0.03688773]
[1738931884021,10.88841276,199.23,199.18,0.03688773]
[1738931884221,1.5605,199.22,199.18,0.03688773]
[1738931884421,5.0181,199.21,199.18,0.03688773]
[1738931884721,1.5605,199.22,199.18,0.03688773]
[1738931885719,1.5472,199.28,199.18,0.03688773]
[1738931885918,1.519,199.27,199.18,0.03688773]
[1738931886119,6.5357,199.27,199.21,5.0178]
[1738931886520,6.5357,199.27,199.22,0.03265833]
[1738931886715,5.016,199.29,199.24,5.0173]
[1738931886920,12.49101276,199.32,199.24,5.0173]
[1738931887121,12.49101276,199.32,199.23,0.03672789]
[1738931887324,6.6181,199.32,199.26,5.0166]
[1738931887518,1.6026,199.32,199.22,10.88841276]
[1738931887718,5.015,199.33,199.28,5.0163]
[1738931887920,3.0385,199.35,199.27,0.03722421]
[1738931888424,10.88841276,199.38,199.27,0.03722421]
[1738931888619,14.02521276,199.41,199.28,10.88841276]
[1738931888822,14.02521276,199.41,199.3,5.0157]
[1738931889022,14.02521276,199.41,199.33,0.03564993]
[1738931890418,10.88841276,199.44,199.33,0.03564993]
[1738931890621,12.43251276,199.44,199.33,0.03564993]
[1738931890921,5.0137,199.39,199.33,5.05064993]
[1738931891122,12.43251276,199.44,199.33,0.03564993]
[1738931891722,5.0137,199.39,199.33,5.05054993]
[1738931891924,12.43251276,199.44,199.33,0.03564993]
[1738931892124,5.0137,199.39,199.33,0.03564993]
[1738931892325,21.29737215,199.54,199.37,10.88841276]
[1738931892525,3.4888,199.53,199.41,10.88841276]
[1738931892725,5.0113,199.48,199.42,5.0125]
[1738931892925,5.0113,199.48,199.45,0.03502911]
[1738931893127,10.88841276,199.52,199.45,0.03502911]
[1738931893324,5.0113,199.48,199.41,5.0128]
[1738931893622,21.29737215,199.54,199.47,10.88841276]
[1738931894326,21.29737215,199.54,199.49,5.0109]
[1738931894521,21.29737215,199.54,199.47,10.88841276]
[1738931894725,21.29737215,199.54,199.5,10.88841276]
[1738931895323,5.009,199.57,199.5,10.88841276]
[1738931895625,3.4888,199.6,199.5,10.88841276]
[1738931895824,5.0098,199.54,199.49,0.03376756]
[1738931896121,14.37721276,199.6,199.5,0.03773789]
[1738931896428,5.009,199.57,199.5,0.03773789]
[1738931896627,14.37721276,199.6,199.5,0.03773789]
[1738931897124,5.0098,199.54,199.5,0.03773789]
[1738931897727,5.0105,199.51,199.5,0.03773789]
[1738931898129,5.0115,199.48,199.4,5.0131]
[1738931898321,5.0115,199.48,199.38,12.39571276]
[1738931898522,10.88841276,199.54,199.41,10.88841276]
[1738931898723,5.0105,199.51,199.44,5.0122]
[1738931899431,0.03553458,199.49,199.46,0.03372971]
[1738931901828,10.88841276,199.48,199.35,71.58830252]
[1738931902228,10.88841276,199.48,199.35,10.88841276]
[1738931902524,10.88841276,199.48,199.32,10.88841276]
[1738931902525,10.88841276,199.45,199.32,10.88841276]
[1738931902726,10.88841276,199.42,199.29,10.88841276]
[1738931902928,0.03844249,199.4,199.37,0.03660883]
[1738931903129,0.03844249,199.4,199.3,5.0155]
[1738931903325,2.69154249,199.4,199.3,5.0155]
[1738931903533,5.014,199.37,199.31,5.0155]
[1738931904029,10.88841276,199.39,199.26,10.88841276]
[1738931904335,0.03425728,199.36,199.32,0.03754538]
[1738931905729,0.03425728,199.36,199.22,21.1134619]
[1738931905928,17.3934619,199.36,199.22,21.1134619]
[1738931906233,5.0159,199.3,199.22,21.1134619]
[1738931906527,1.7873,199.35,199.19,78.13484265]
[1738931906734,5.05402908,199.28,199.24,0.0356382]
[1738931907131,0.03762908,199.28,199.24,0.0356382]
[1738931907328,5.0166,199.27,199.24,0.0356382]
[1738931907524,0.03762908,199.28,199.24,0.0356382]
[1738931907733,5.0166,199.27,199.24,0.0356382]
[1738931907932,0.03762908,199.28,199.24,0.0356382]
[1738931908334,5.0169,199.26,199.24,0.0356382]
[1738931909040,0.03762908,199.28,199.24,0.0356382]
[1738931910937,5.0169,199.26,199.24,0.0356382]
[1738931911839,5.017,199.25,199.24,0.0356382]
[1738931916043,5.017,199.25,199.13,21.0934619]
[1738931916044,5.0178,199.23,199.17,5.0189]
[1738931916238,2.7588,199.27,199.17,5.0189]
[1738931916744,5.0178,199.23,199.17,5.0189]
[1738931916944,2.7588,199.27,199.17,5.0189]
[1738931917139,0.03509957,199.22,199.18,0.03324201]
[1738931917336,5.05309957,199.22,199.18,0.03324201]
[1738931918141,5.0181,199.21,199.18,0.03324201]
[1738931918338,0.03509957,199.22,199.18,0.03324201]
[1738931918841,5.0185,199.19,199.18,0.03324201]
[1738931920442,0.03509957,199.22,199.18,0.03324201]
[1738931920644,5.0184,199.2,199.18,0.03324201]
[1738931920838,0.03509957,199.22,199.18,0.03324201]
[1738931921142,5.0185,199.19,199.18,0.03324201]
[1738931922144,0.03509957,199.22,199.18,0.03324201]
[1738931922643,5.0185,199.2,199.18,0.03324201]
[1738931923640,0.03509957,199.22,199.18,0.03324201]
[1738931923944,5.0185,199.19,199.18,0.03324201]
[1738931924546,5.0183,199.2,199.18,0.03324201]
[1738931924944,1.9828,199.21,199.18,0.03324201]
[1738931925247,7.0009,199.21,199.18,0.03324201]
[1738931926245,5.0184,199.2,199.18,0.03324201]
[1738931930448,5.0185,199.19,199.18,0.03324201]
[1738931934949,1.9828,199.21,199.18,0.03324201]
[1738931935150,0.03509957,199.22,199.18,0.03324201]
[1738931936952,0.03509957,199.22,199.19,5.0184]
[1738931938049,5.05299957,199.22,199.18,5.05194201]
[1738931938949,0.03509957,199.22,199.18,0.03324201]
[1738931939950,5.0185,199.19,199.18,0.03324201]
[1738931942055,0.03509957,199.22,199.18,0.03324201]
[1738931942252,10.91793642,199.22,199.18,0.03324201]
[1738931943856,5.0185,199.19,199.18,0.03324201]
[1738931944555,5.0183,199.2,199.18,0.03324201]
[1738931946159,0.03509957,199.22,199.19,5.0185]
[1738931946358,0.03509957,199.22,199.18,0.03324201]
[1738931947154,0.03509957,199.22,199.21,5.018]
[1738931948756,0.03509957,199.22,199.18,10.91607886]
[1738931949055,0.03509957,199.22,199.18,0.03324201]
[1738931949255,5.0181,199.21,199.18,0.03324201]
[1738931949462,0.03509957,199.22,199.18,0.03324201]
[1738931950861,5.0183,199.2,199.18,0.03324201]
[1738931951160,0.03509957,199.22,199.18,0.03324201]
[1738931952061,5.05309957,199.22,199.18,5.05184201]
[1738931954558,5.05309957,199.22,199.19,5.0185]
[1738931955170,5.0181,199.21,199.18,5.05194201]
[1738931955863,0.03509957,199.22,199.18,0.03324201]
[1738931956465,5.0185,199.19,199.18,0.03324201]
[1738931960467,10.88283685,199.2,199.06,12.69483685]
[1738931960768,5.0194,199.16,199.11,5.0203]
[1738931961573,0.03300377,199.15,199.12,0.0351807]
[1738931963774,5.02,199.13,199.12,0.0351807]
[1738931970876,5.0218,199.07,198.99,15.24003685]
[1738931971076,10.88283685,199.11,199.02,5.0226]
[1738931971575,5.0217,199.07,199.02,5.0226]
[1738931971775,10.88283685,199.11,199.02,5.0226]
[1738931971974,5.0217,199.07,199.05,0.03664131]
[1738931972176,0.03804057,199.08,199.05,0.03664131]
[1738931973679,5.0218,199.06,199.05,0.03664131]
[1738931975879,10.92087742,199.08,198.97,10.88283685]
[1738931976077,5.0229,199.02,198.97,10.88283685]
[1738931976278,5.0229,199.02,198.98,5.0236]
[1738931976780,5.0231,199.01,198.97,15.90683685]
[1738931977176,5.05843565,199.01,198.97,15.9418232]
[1738931977482,5.0234,199.0,198.97,15.9418232]
[1738931977780,5.0234,199.0,198.97,5.05898635]
[1738931979082,5.0236,198.99,198.97,0.03498635]
[1738931979783,5.0238,198.98,198.97,0.03498635]
[1738931982278,0.03533565,199.01,198.97,0.03498635]
[1738931982473,0.03533565,199.01,198.98,5.0238]
[1738931983381,5.05843565,199.01,198.97,15.9418232]
[1738931983781,5.05843565,199.01,198.97,10.9178232]
[1738931984078,0.03533565,199.01,198.97,10.9178232]
[1738931984283,0.03533565,199.01,198.98,5.0238]
[1738931984677,0.03533565,199.01,198.97,10.9178232]
[1738931984678,5.0238,198.98,198.97,0.03498635]
[1738931984882,21.7656737,199.0,198.83,1.9652]
[1738931985179,10.88283685,198.95,198.83,1.9652]
[1738931985784,5.0258,198.91,198.86,5.0267]
[1738931986084,0.03577189,198.91,198.87,0.03382766]
[1738931986782,5.06147189,198.91,198.87,5.06042766]
[1738931990284,0.03577189,198.91,198.87,0.03382766]
[1738931990584,0.03577189,198.91,198.89,5.026]
[1738931992486,0.03577189,198.91,198.87,0.03382766]
[1738931992681,0.03577189,198.91,198.9,5.0258]
[1738931993286,10.88283685,199.01,198.87,10.91666451]
[1738931993481,10.88283685,199.01,198.93,5.0249]
[1738931994380,10.88283685,199.01,198.87,10.88283685]
[1738931994583,5.0243,198.97,198.95,0.0379905]
[1738931994786,0.03342094,198.99,198.95,0.0379905]
[1738931995185,5.0243,198.96,198.95,0.0379905]
[1738932007890,0.03342094,198.99,198.95,0.0379905]
[1738932008096,5.0211,199.09,198.98,10.88283685]
[1738932008292,17.37653685,199.15,199.03,10.88283685]
[1738932008487,5.0218,199.07,199.01,5.0231]
[1738932008795,6.97517275,199.07,199.02,6.97517275]
[1738932008994,6.97517275,199.07,199.0,6.97517275]
[1738932009194,0.03521842,199.06,199.03,0.03658229]
[1738932009396,6.97517275,199.05,199.03,0.03658229]
[1738932010388,5.0223,199.04,199.03,0.03658229]
[1738932011397,6.92721842,199.06,199.03,0.03658229]
[1738932011890,0.03521842,199.06,199.03,0.03658229]
[1738932012894,0.03521842,199.06,199.03,5.05918229]
[1738932018903,0.03521842,199.06,199.03,0.03658229]
[1738932019095,0.03521842,199.06,199.05,5.0221]
[1738932020808,5.0203,199.12,199.08,5.0213]
[1738932021308,15.57891956,199.18,199.08,5.0213]
[1738932021804,0.0346851,199.15,199.11,0.03683592]
[1738932022406,5.0198,199.14,199.11,0.03683592]
[1738932022706,10.93660466,199.15,199.11,0.03683592]
[1738932023604,10.93660466,199.15,199.03,1.8547]
[1738932023605,10.90191956,199.12,199.03,1.8547]
[1738932023809,10.90191956,199.12,198.99,10.90191956]
[1738932025005,5.05739616,199.07,199.04,0.03228739]
[1738932026407,5.0221,199.05,199.04,0.03228739]
[1738932027399,5.0236,198.99,198.93,61.61598903]
[1738932028497,0.03796504,198.98,198.94,0.03632239]
[1738932029408,0.03796504,198.98,198.96,5.0243]
[1738932030708,0.03796504,198.98,198.94,0.03632239]
[1738932030909,0.03796504,198.98,198.97,5.0241]
[1738932031910,5.0243,198.97,198.94,0.03632239]
[1738932032109,0.03796504,198.98,198.94,0.03632239]
[1738932032608,0.03796504,198.98,198.94,5.06112239]
[1738932034808,5.06186504,198.98,198.94,5.06112239]
[1738932036614,5.06186504,198.98,198.94,12.0418308]
[1738932041014,5.0242,198.97,198.94,12.0418308]
[1738932041214,7.01867345,198.98,198.94,0.03632239]
[1738932041415,0.03796504,198.98,198.94,7.0170308]
[1738932041611,5.06196504,198.98,198.94,7.0170308]
[1738932042114,5.06196504,198.98,198.95,5.0244]
[1738932044117,0.03796504,198.98,198.97,5.0241]
[1738932044817,0.03796504,198.98,198.96,6.98070841]
[1738932045018,0.03796504,198.98,198.96,12.00500841]
[1738932046715,0.03796504,198.98,198.96,6.98070841]
[1738932047022,5.06186504,198.98,198.95,5.0246]
[1738932049322,0.03796504,198.98,198.94,0.03632239]
[1738932049516,5.0243,198.97,198.94,5.06112239]
[1738932050125,5.0245,198.96,198.94,0.03632239]
[1738932051825,5.0246,198.95,198.94,0.03632239]
[1738932070046,0.03796504,198.98,198.94,0.03632239]
[1738932070240,0.03796504,198.98,198.96,6.98070841]
[1738932071847,0.03796504,198.98,198.97,5.0241]
[1738932075451,0.03796504,198.98,198.96,6.98070841]
[1738932075656,0.03796504,198.98,198.96,12.00500841]
[1738932080054,0.03796504,198.98,198.94,12.0416308]
[1738932080351,0.03796504,198.98,198.94,7.0170308]
[1738932080952,5.06196504,198.98,198.94,12.0418308]
[1738932081452,5.0241,198.97,198.94,12.0418308]
[1738932082447,7.01867345,198.98,198.94,0.03632239]
[1738932082751,5.0246,198.95,198.94,0.03632239]
[1738932085349,5.0259,198.9,198.86,6.98070841]
[1738932085550,6.98070841,198.92,198.84,6.98070841]
[1738932085756,6.98070841,198.9,198.85,5.0271]
[1738932085957,5.0261,198.89,198.85,5.0271]
[1738932086347,5.06053293,198.89,198.85,5.06446483]
[1738932087359,0.03443293,198.89,198.85,0.03736483]
[1738932087660,6.98070841,198.86,198.78,62.51043851]
[1738932087861,6.98070841,198.84,198.78,62.51043851]
[1738932088055,6.98070841,198.84,198.78,6.98070841]
[1738932088559,5.0272,198.85,198.8,12.00890841]
[1738932088960,0.03496645,198.84,198.81,0.03170723]
[1738932089460,5.06236645,198.84,198.81,0.03170723]
[1738932090661,0.03496645,198.84,198.81,0.03170723]
[1738932090962,5.0278,198.83,198.81,0.03170723]
[1738932091358,0.03496645,198.84,198.81,0.03170723]
[1738932092764,5.06236645,198.84,198.81,0.03170723]
[1738932093161,0.03496645,198.84,198.82,6.98070841]
[1738932093563,0.03496645,198.84,198.83,5.0276]
[1738932096756,5.0263,198.89,198.82,6.98070841]
[1738932096757,5.0258,198.91,198.82,6.98070841]
[1738932096963,5.0258,198.91,198.88,5.0263]
[1738932097665,5.0258,198.91,198.87,5.0266]
[1738932097866,0.03213503,198.9,198.87,5.06289156]
[1738932099869,0.03213503,198.9,198.89,5.0261]
[1738932102565,6.98070841,198.96,198.88,6.98070841]
[1738932102767,6.98070841,199.02,198.95,6.98070841]
[1738932102973,6.98070841,199.0,198.93,6.98070841]
[1738932103773,5.0243,198.97,198.95,0.03386956]
[1738932103974,6.98070841,198.98,198.92,5.0253]
[1738932104175,7.01382546,198.98,198.94,0.03830004]
[1738932104874,5.0243,198.96,198.94,0.03830004]
[1738932105476,5.0241,198.97,198.94,0.03830004]
[1738932105669,7.01382546,198.98,198.94,0.03830004]
[1738932106967,12.03772546,198.98,198.94,0.03830004]
[1738932107577,7.01382546,198.98,198.94,0.03830004]
[1738932107777,5.0242,198.97,198.94,0.03830004]
[1738932109779,6.98070841,198.96,198.94,0.03830004]
[1738932110776,5.0246,198.95,198.94,0.03830004]
[1738932118881,6.98070841,198.96,198.94,5.06310004]
[1738932119097,7.01382546,198.98,198.94,0.03830004]
[1738932119383,0.03311705,198.98,198.97,5.0241]
[1738932120383,0.03311705,198.98,198.97,12.00480841]
[1738932120774,0.03311705,198.98,198.96,5.0241]
[1738932120984,0.03311705,198.98,198.95,6.98070841]
[1738932121182,0.03311705,198.98,198.94,0.03830004]
[1738932121584,0.03311705,198.98,198.95,5.0244]
[1738932121884,0.03311705,198.98,198.94,0.03830004]
[1738932121885,0.03311705,198.98,198.97,6.98070841]
[1738932122776,0.03311705,198.98,198.97,12.00480841]
[1738932123879,1.705e-05,198.98,198.97,12.00480841]
[1738932124680,8.94480841,199.1,198.97,6.98070841]
[1738932124881,8.94480841,199.1,199.02,6.98070841]
[1738932125486,6.98070841,199.1,199.06,5.0217]
[1738932125786,0.03742542,199.1,199.06,5.05362789]
[1738932125981,0.03742542,199.1,199.06,7.0126363]
[1738932126187,0.03742542,199.1,199.08,6.98070841]
[1738932126785,0.03742542,199.1,199.09,5.0211]
[1738932129989,5.02,199.14,199.09,5.0211]